[Event "*** Titled Tuesday Blitz"]
[Site "Chess.com"]
[Date "2021.04.20"]
[Round "2"]
[White "KuzubovYuriy"]
[Black "pastouche06"]
[Result "1-0"]
[WhiteElo "2849"]
[BlackElo "2565"]
[TimeControl "180+1"]
[EndTime "10:15:24 PDT"]
[Termination "KuzubovYuriy won by resignation"]

1. d4 {[%clk 0:03:00.9]} 1... d5 {[%clk 0:02:59.3]} 2. c4 {[%clk 0:03:01.3]}
2... e6 {[%clk 0:02:57.5]} 3. Nc3 {[%clk 0:03:01.1]} 3... a6 {[%clk 0:02:57.6]}
4. cxd5 {[%clk 0:03:00.8]} 4... exd5 {[%clk 0:02:58.5]} 5. Nf3 {[%clk
0:03:01.5]} 5... Nf6 {[%clk 0:02:57.5]} 6. Bg5 {[%clk 0:03:01.3]} 6... Be6
{[%clk 0:02:57.7]} 7. Qb3 {[%clk 0:02:55.7]} 7... Nbd7 {[%clk 0:02:49.2]} 8. e3
{[%clk 0:02:56.1]} 8... b5 {[%clk 0:02:38.1]} 9. Qd1 {[%clk 0:02:50]} 9... c6
{[%clk 0:02:30]} 10. Bd3 {[%clk 0:02:49.1]} 10... Bd6 {[%clk 0:02:27.8]} 11. Rc1
{[%clk 0:02:48.6]} 11... O-O {[%clk 0:02:22.4]} 12. O-O {[%clk 0:02:46.5]} 12...
h6 {[%clk 0:02:09.2]} 13. Bh4 {[%clk 0:02:45.9]} 13... Qb6 {[%clk 0:01:55.1]}
14. Ne2 {[%clk 0:02:42.7]} 14... Bg4 {[%clk 0:01:45.4]} 15. h3 {[%clk
0:02:36.5]} 15... Bxf3 {[%clk 0:01:41.7]} 16. gxf3 {[%clk 0:02:37.4]} 16... Rfe8
{[%clk 0:01:26.5]} 17. Kh1 {[%clk 0:02:36.5]} 17... c5 {[%clk 0:00:45.5]} 18.
dxc5 {[%clk 0:02:35.8]} 18... Bxc5 {[%clk 0:00:46.4]} 19. Rg1 {[%clk 0:02:35.7]}
19... Kh8 {[%clk 0:00:43.5]} 20. Bb1 {[%clk 0:02:19]} 20... Re5 {[%clk
0:00:21.7]} 21. f4 {[%clk 0:01:53.5]} 21... Rh5 {[%clk 0:00:19.4]} 22. Bxf6
{[%clk 0:01:53.3]} 22... Nxf6 {[%clk 0:00:19.9]} 23. Kg2 {[%clk 0:01:51.5]}
23... Ne4 {[%clk 0:00:13.3]} 24. Bxe4 {[%clk 0:01:47.6]} 24... dxe4 {[%clk
0:00:13.1]} 25. Ng3 {[%clk 0:01:47.9]} 25... Rd8 {[%clk 0:00:08.2]} 26. Qxh5
{[%clk 0:01:46.9]} 1-0

[Event "*** Titled Tuesday Blitz"]
[Site "Chess.com"]
[Date "2021.04.20"]
[Round "2"]
[White "m_ezat"]
[Black "Agoking701"]
[Result "1-0"]
[WhiteElo "2539"]
[BlackElo "2316"]
[TimeControl "180+1"]
[EndTime "10:15:24 PDT"]
[Termination "m_ezat won by resignation"]

1. d4 {[%clk 0:03:00.9]} 1... Nf6 {[%clk 0:02:59]} 2. c4 {[%clk 0:03:01.8]} 2...
e6 {[%clk 0:02:59]} 3. Nc3 {[%clk 0:03:02.7]} 3... Bb4 {[%clk 0:02:59.5]} 4. Qc2
{[%clk 0:03:01.8]} 4... O-O {[%clk 0:02:54.5]} 5. a3 {[%clk 0:03:00.5]} 5...
Bxc3+ {[%clk 0:02:53.7]} 6. Qxc3 {[%clk 0:03:01.1]} 6... d6 {[%clk 0:02:50.3]}
7. Bg5 {[%clk 0:03:00]} 7... Nbd7 {[%clk 0:02:46.2]} 8. e3 {[%clk 0:02:58.3]}
8... h6 {[%clk 0:02:33.5]} 9. Bh4 {[%clk 0:02:57.5]} 9... b6 {[%clk 0:02:03.4]}
10. Bd3 {[%clk 0:02:56]} 10... Bb7 {[%clk 0:02:03.3]} 11. f3 {[%clk 0:02:56]}
11... Re8 {[%clk 0:01:45.1]} 12. Ne2 {[%clk 0:02:54.9]} 12... Nf8 {[%clk
0:01:44.8]} 13. O-O {[%clk 0:02:50.4]} 13... Ng6 {[%clk 0:01:45]} 14. Bxg6
{[%clk 0:02:49.3]} 14... fxg6 {[%clk 0:01:45.5]} 15. e4 {[%clk 0:02:47.7]} 15...
g5 {[%clk 0:01:40]} 16. Bf2 {[%clk 0:02:46.4]} 16... e5 {[%clk 0:01:38.7]} 17.
Rad1 {[%clk 0:02:44.8]} 17... Qe7 {[%clk 0:01:38.9]} 18. Ng3 {[%clk 0:02:40.8]}
18... g6 {[%clk 0:01:36.4]} 19. dxe5 {[%clk 0:02:40.4]} 19... dxe5 {[%clk
0:01:35.4]} 20. c5 {[%clk 0:02:40.5]} 20... Ba6 {[%clk 0:01:29]} 21. Rfe1 {[%clk
0:02:39.2]} 21... Rad8 {[%clk 0:01:28.3]} 22. h3 {[%clk 0:02:32.9]} 22... Kh7
{[%clk 0:01:05.5]} 23. Qb3 {[%clk 0:02:29.8]} 23... b5 {[%clk 0:00:57.4]} 24.
Qc3 {[%clk 0:02:27.8]} 24... c6 {[%clk 0:00:54.9]} 25. Qa5 {[%clk 0:02:26]}
25... Bc8 {[%clk 0:00:52.5]} 26. a4 {[%clk 0:02:08.2]} 26... a6 {[%clk
0:00:50.8]} 27. Qb6 {[%clk 0:02:07.1]} 27... Qb7 {[%clk 0:00:49.6]} 28. Qa5
{[%clk 0:02:01.2]} 28... Qe7 {[%clk 0:00:47.2]} 29. Rxd8 {[%clk 0:01:52.8]}
29... Rxd8 {[%clk 0:00:45.4]} 30. Qb6 {[%clk 0:01:52.8]} 30... Qd7 {[%clk
0:00:36.6]} 31. axb5 {[%clk 0:01:52.3]} 31... axb5 {[%clk 0:00:37.5]} 32. Ra1
{[%clk 0:01:52.1]} 32... Qe6 {[%clk 0:00:25.1]} 33. Qxd8 {[%clk 0:01:49.9]} 1-0

[Event "*** Titled Tuesday Blitz"]
[Site "Chess.com"]
[Date "2021.04.20"]
[Round "2"]
[White "DKmirl"]
[Black "DrMamaliga"]
[Result "1-0"]
[WhiteElo "1884"]
[BlackElo "2350"]
[TimeControl "180+1"]
[EndTime "10:15:32 PDT"]
[Termination "DKmirl won by resignation"]

1. d4 {[%clk 0:03:00.9]} 1... Nf6 {[%clk 0:01:45.2]} 2. Nf3 {[%clk 0:03:01.8]}
2... c5 {[%clk 0:01:46.1]} 3. c3 {[%clk 0:02:58]} 3... cxd4 {[%clk 0:01:39]} 4.
cxd4 {[%clk 0:02:58.3]} 4... d5 {[%clk 0:01:39.9]} 5. g3 {[%clk 0:02:58.2]} 5...
Nc6 {[%clk 0:01:40.8]} 6. Bg2 {[%clk 0:02:58.8]} 6... g6 {[%clk 0:01:38.6]} 7.
O-O {[%clk 0:02:58.4]} 7... Bg7 {[%clk 0:01:39.5]} 8. Nc3 {[%clk 0:02:58.7]}
8... O-O {[%clk 0:01:39.7]} 9. Bf4 {[%clk 0:02:58.7]} 9... Bg4 {[%clk
0:01:39.9]} 10. h3 {[%clk 0:02:58.2]} 10... Bxf3 {[%clk 0:01:40.2]} 11. Bxf3
{[%clk 0:02:57]} 11... e6 {[%clk 0:01:41.1]} 12. Qd2 {[%clk 0:02:53.1]} 12...
Qb6 {[%clk 0:01:40.7]} 13. Rfd1 {[%clk 0:02:46.1]} 13... Rac8 {[%clk 0:01:38.4]}
14. Rac1 {[%clk 0:02:40.5]} 14... Rfd8 {[%clk 0:01:34.8]} 15. Na4 {[%clk
0:02:38.8]} 15... Qa5 {[%clk 0:01:32.1]} 16. Qxa5 {[%clk 0:02:34.7]} 16... Nxa5
{[%clk 0:01:33]} 17. Be5 {[%clk 0:02:27.8]} 17... Nc6 {[%clk 0:01:30.6]} 18. Bf4
{[%clk 0:02:16.3]} 18... Nd7 {[%clk 0:01:26.6]} 19. Be3 {[%clk 0:02:03.7]} 19...
Rc7 {[%clk 0:01:16]} 20. Nc5 {[%clk 0:01:59.7]} 20... Nxc5 {[%clk 0:01:05.9]}
21. Rxc5 {[%clk 0:02:00.2]} 21... Rdc8 {[%clk 0:01:06.4]} 22. Rdc1 {[%clk
0:01:54.9]} 22... b6 {[%clk 0:01:00.5]} 23. R5c2 {[%clk 0:01:40.8]} 23... Kf8
{[%clk 0:00:47.4]} 24. b4 {[%clk 0:01:37]} 24... e5 {[%clk 0:00:43.7]} 25. Bxd5
{[%clk 0:01:21.3]} 25... Ke7 {[%clk 0:00:38.3]} 26. Rxc6 {[%clk 0:01:17.8]} 1-0

[Event "*** Titled Tuesday Blitz"]
[Site "Chess.com"]
[Date "2021.04.20"]
[Round "2"]
[White "WashUntilHoles"]
[Black "dmitrijiIM"]
[Result "1-0"]
[WhiteElo "2819"]
[BlackElo "2535"]
[TimeControl "180+1"]
[EndTime "10:15:43 PDT"]
[Termination "WashUntilHoles won by checkmate"]

1. d4 {[%clk 0:03:00.9]} 1... Nf6 {[%clk 0:02:57.6]} 2. Bf4 {[%clk 0:03:01.3]}
2... g6 {[%clk 0:02:52.6]} 3. e3 {[%clk 0:03:00.1]} 3... Bg7 {[%clk 0:02:52.5]}
4. Nf3 {[%clk 0:02:59.8]} 4... O-O {[%clk 0:02:52.4]} 5. h3 {[%clk 0:02:57.5]}
5... d5 {[%clk 0:02:52.6]} 6. Be2 {[%clk 0:02:50.8]} 6... c5 {[%clk 0:02:52.3]}
7. O-O {[%clk 0:02:50.6]} 7... Nc6 {[%clk 0:02:51.3]} 8. c3 {[%clk 0:02:47.2]}
8... Nd7 {[%clk 0:02:44.8]} 9. Nbd2 {[%clk 0:02:46.7]} 9... e5 {[%clk
0:02:44.8]} 10. dxe5 {[%clk 0:02:47.6]} 10... Ndxe5 {[%clk 0:02:45.7]} 11. Nxe5
{[%clk 0:02:47.9]} 11... Nxe5 {[%clk 0:02:46.3]} 12. Nf3 {[%clk 0:02:48.6]}
12... Nxf3+ {[%clk 0:02:45.6]} 13. Bxf3 {[%clk 0:02:49.5]} 13... Be6 {[%clk
0:02:46.3]} 14. Qe2 {[%clk 0:02:19.1]} 14... Qb6 {[%clk 0:02:40.2]} 15. Rfd1
{[%clk 0:02:18.7]} 15... Rfd8 {[%clk 0:02:40.7]} 16. Rac1 {[%clk 0:02:10.7]}
16... Rac8 {[%clk 0:02:24.3]} 17. b3 {[%clk 0:02:07.3]} 17... d4 {[%clk
0:02:02.9]} 18. cxd4 {[%clk 0:02:06.7]} 18... cxd4 {[%clk 0:02:03.8]} 19. Rxc8
{[%clk 0:02:07]} 19... Rxc8 {[%clk 0:02:04.7]} 20. exd4 {[%clk 0:02:06.9]} 20...
Bxd4 {[%clk 0:02:04.8]} 21. Bxb7 {[%clk 0:02:01.5]} 21... Bxf2+ {[%clk
0:01:02.5]} 22. Qxf2 {[%clk 0:02:02.4]} 22... Qxb7 {[%clk 0:01:03.2]} 23. Be5
{[%clk 0:02:02.8]} 23... Bf5 {[%clk 0:00:50.3]} 24. Qh4 {[%clk 0:02:02.9]} 24...
h5 {[%clk 0:00:07]} 25. Kh2 {[%clk 0:01:52.7]} 25... Qb6 {[%clk 0:00:03.3]} 26.
Rd6 {[%clk 0:01:39.2]} 26... Qc5 {[%clk 0:00:03.7]} 27. Qf6 {[%clk 0:01:38.4]}
27... Kf8 {[%clk 0:00:03.7]} 28. Rd8+ {[%clk 0:01:36.9]} 28... Rxd8 {[%clk
0:00:03.6]} 29. Qxd8# {[%clk 0:01:37.8]} 1-0

[Event "*** Titled Tuesday Blitz"]
[Site "Chess.com"]
[Date "2021.04.20"]
[Round "2"]
[White "Loy_Konstantin"]
[Black "canary2016"]
[Result "1-0"]
[WhiteElo "2375"]
[BlackElo "2000"]
[TimeControl "180+1"]
[EndTime "10:15:45 PDT"]
[Termination "Loy_Konstantin won by resignation"]

1. e4 {[%clk 0:03:00.9]} 1... c6 {[%clk 0:02:59]} 2. d4 {[%clk 0:03:00.6]} 2...
d5 {[%clk 0:02:58.8]} 3. exd5 {[%clk 0:03:01.5]} 3... cxd5 {[%clk 0:02:58.7]} 4.
c4 {[%clk 0:03:02.1]} 4... Nc6 {[%clk 0:02:57.7]} 5. Nc3 {[%clk 0:03:01.6]} 5...
e6 {[%clk 0:02:56.9]} 6. Nf3 {[%clk 0:03:01.4]} 6... Nf6 {[%clk 0:02:56.4]} 7.
c5 {[%clk 0:03:01.8]} 7... Be7 {[%clk 0:02:55.4]} 8. Bb5 {[%clk 0:03:01.8]} 8...
O-O {[%clk 0:02:54.7]} 9. O-O {[%clk 0:03:02.3]} 9... Bd7 {[%clk 0:02:52.6]} 10.
Bxc6 {[%clk 0:03:02.3]} 10... Bxc6 {[%clk 0:02:52.5]} 11. Bf4 {[%clk 0:03:02.4]}
11... Rc8 {[%clk 0:02:52]} 12. h3 {[%clk 0:03:00.8]} 12... b6 {[%clk 0:02:52]}
13. b4 {[%clk 0:02:59.4]} 13... Ba8 {[%clk 0:02:51.9]} 14. Re1 {[%clk
0:02:57.7]} 14... a5 {[%clk 0:02:51.7]} 15. a3 {[%clk 0:02:57.6]} 15... Ne4
{[%clk 0:02:40.1]} 16. Qc2 {[%clk 0:02:49]} 16... Bf6 {[%clk 0:02:15.6]} 17. Ne5
{[%clk 0:02:47.5]} 17... axb4 {[%clk 0:02:09.7]} 18. axb4 {[%clk 0:02:46.6]}
18... bxc5 {[%clk 0:02:07.1]} 19. bxc5 {[%clk 0:02:47.5]} 19... Bb7 {[%clk
0:02:01.5]} 20. f3 {[%clk 0:02:42.1]} 20... Nxc3 {[%clk 0:01:57.7]} 21. Qxc3
{[%clk 0:02:43]} 21... Bxe5 {[%clk 0:01:51.5]} 22. Bxe5 {[%clk 0:02:41.5]} 22...
Ra8 {[%clk 0:01:50.2]} 23. c6 {[%clk 0:02:16.4]} 23... Rxa1 {[%clk 0:01:41.5]}
24. Rxa1 {[%clk 0:02:13.3]} 24... Qc8 {[%clk 0:01:36.5]} 25. c7 {[%clk 0:01:56]}
25... f6 {[%clk 0:01:29.8]} 26. Bd6 {[%clk 0:01:54.5]} 26... Rf7 {[%clk
0:01:23.6]} 27. Ra7 {[%clk 0:01:39.3]} 27... Rd7 {[%clk 0:00:20.6]} 28. Rxb7
{[%clk 0:01:33.4]} 28... Rxd6 {[%clk 0:00:18.7]} 29. Rb8 {[%clk 0:01:32.3]}
29... Rd8 {[%clk 0:00:17]} 30. cxd8=Q+ {[%clk 0:01:31]} 30... Qxd8 {[%clk
0:00:14.8]} 31. Rxd8+ {[%clk 0:01:30.6]} 31... Kf7 {[%clk 0:00:15.7]} 32. Qc7+
{[%clk 0:01:29.6]} 1-0

[Event "*** Titled Tuesday Blitz"]
[Site "Chess.com"]
[Date "2021.04.20"]
[Round "2"]
[White "supertfc"]
[Black "Serly25"]
[Result "1-0"]
[WhiteElo "2377"]
[BlackElo "1946"]
[TimeControl "180+1"]
[EndTime "10:15:47 PDT"]
[Termination "supertfc won by resignation"]

1. c4 {[%clk 0:03:00.9]} 1... e5 {[%clk 0:02:58]} 2. g3 {[%clk 0:03:00.9]} 2...
Bc5 {[%clk 0:02:54.9]} 3. Bg2 {[%clk 0:03:00]} 3... d6 {[%clk 0:02:53.4]} 4. Nc3
{[%clk 0:02:59.4]} 4... a6 {[%clk 0:02:53.2]} 5. Nf3 {[%clk 0:02:55.1]} 5... Nc6
{[%clk 0:02:52.8]} 6. O-O {[%clk 0:02:55.4]} 6... Be6 {[%clk 0:02:40.2]} 7. d3
{[%clk 0:02:52.9]} 7... Qd7 {[%clk 0:02:38.7]} 8. Nd5 {[%clk 0:02:39.1]} 8...
Nge7 {[%clk 0:02:31.8]} 9. Ng5 {[%clk 0:02:30.9]} 9... Bg4 {[%clk 0:01:57.8]}
10. Rb1 {[%clk 0:02:14.3]} 10... f6 {[%clk 0:01:49.5]} 11. Ne4 {[%clk
0:02:11.1]} 11... Ba7 {[%clk 0:01:38.5]} 12. b4 {[%clk 0:02:06]} 12... h5 {[%clk
0:01:04.1]} 13. Nexf6+ {[%clk 0:02:04.8]} 13... gxf6 {[%clk 0:00:49.4]} 14.
Nxf6+ {[%clk 0:02:05.7]} 14... Kd8 {[%clk 0:00:48.3]} 15. Nxd7 {[%clk
0:02:06.6]} 15... Kxd7 {[%clk 0:00:49]} 16. b5 {[%clk 0:01:53]} 16... Nd4 {[%clk
0:00:36.9]} 17. Rb2 {[%clk 0:01:49.9]} 17... h4 {[%clk 0:00:35.4]} 18. bxa6
{[%clk 0:01:44.4]} 18... hxg3 {[%clk 0:00:33.3]} 19. Qa4+ {[%clk 0:01:41.5]}
19... Nec6 {[%clk 0:00:31.7]} 20. axb7 {[%clk 0:01:20.6]} 20... Rhb8 {[%clk
0:00:11.4]} 21. bxa8=Q {[%clk 0:01:10.9]} 1-0

[Event "*** Titled Tuesday Blitz"]
[Site "Chess.com"]
[Date "2021.04.20"]
[Round "2"]
[White "Semen_Khanin"]
[Black "PotapovaM"]
[Result "1-0"]
[WhiteElo "2755"]
[BlackElo "2509"]
[TimeControl "180+1"]
[EndTime "10:15:49 PDT"]
[Termination "Semen_Khanin won by resignation"]

1. e4 {[%clk 0:03:00.9]} 1... c5 {[%clk 0:02:59.8]} 2. Nf3 {[%clk 0:03:00.7]}
2... d6 {[%clk 0:03:00.4]} 3. d4 {[%clk 0:03:01.1]} 3... cxd4 {[%clk 0:03:01.3]}
4. Nxd4 {[%clk 0:03:01.8]} 4... Nf6 {[%clk 0:03:02]} 5. Nc3 {[%clk 0:03:02.5]}
5... a6 {[%clk 0:03:02.7]} 6. f3 {[%clk 0:03:03.1]} 6... e5 {[%clk 0:03:02.6]}
7. Nb3 {[%clk 0:03:03.8]} 7... Be6 {[%clk 0:03:03.1]} 8. Be3 {[%clk 0:03:04.5]}
8... Be7 {[%clk 0:03:03.8]} 9. Qd2 {[%clk 0:03:04.9]} 9... O-O {[%clk
0:03:04.3]} 10. O-O-O {[%clk 0:03:05.5]} 10... Nbd7 {[%clk 0:03:04.9]} 11. g4
{[%clk 0:03:06]} 11... b5 {[%clk 0:03:03]} 12. g5 {[%clk 0:03:06.5]} 12... b4
{[%clk 0:02:47.4]} 13. gxf6 {[%clk 0:03:06.1]} 13... bxc3 {[%clk 0:02:46.7]} 14.
Qxc3 {[%clk 0:03:06.7]} 14... Nxf6 {[%clk 0:02:47.3]} 15. Na5 {[%clk 0:03:07.4]}
15... Rc8 {[%clk 0:02:47.5]} 16. Nc6 {[%clk 0:03:08.1]} 16... Qd7 {[%clk
0:02:48.2]} 17. Nxe7+ {[%clk 0:03:08.6]} 17... Qxe7 {[%clk 0:02:49.1]} 18. Qa5
{[%clk 0:03:09]} 18... Rc6 {[%clk 0:02:49.8]} 19. Kb1 {[%clk 0:03:06.7]} 19...
Rfc8 {[%clk 0:02:49.9]} 20. Rg1 {[%clk 0:03:05.8]} 20... Kh8 {[%clk 0:02:48.6]}
21. b3 {[%clk 0:03:04.5]} 21... Qb7 {[%clk 0:01:44.7]} 22. Rg2 {[%clk
0:02:57.1]} 22... h6 {[%clk 0:01:16.1]} 23. Rgd2 {[%clk 0:02:56.9]} 23... Ne8
{[%clk 0:01:10.7]} 24. f4 {[%clk 0:02:53.1]} 24... Bg4 {[%clk 0:01:06.2]} 25.
Re1 {[%clk 0:02:49.6]} 25... exf4 {[%clk 0:01:05.9]} 26. Bd4 {[%clk 0:02:40.1]}
26... Nc7 {[%clk 0:00:57.5]} 27. Bb2 {[%clk 0:02:23.2]} 27... Ne6 {[%clk
0:00:56.6]} 28. h3 {[%clk 0:02:15.7]} 28... Bh5 {[%clk 0:00:56.3]} 29. Qxh5
{[%clk 0:02:14.9]} 29... Kh7 {[%clk 0:00:34.9]} 30. e5 {[%clk 0:02:06.6]} 30...
d5 {[%clk 0:00:30.7]} 31. Bd3+ {[%clk 0:02:01.7]} 31... g6 {[%clk 0:00:31.1]}
32. Qf3 {[%clk 0:01:57.5]} 32... R6c7 {[%clk 0:00:23.9]} 33. h4 {[%clk
0:01:56.8]} 33... Kg7 {[%clk 0:00:22.4]} 34. h5 {[%clk 0:01:56.2]} 34... g5
{[%clk 0:00:22.6]} 35. Qg4 {[%clk 0:01:55.9]} 35... Rh8 {[%clk 0:00:14.4]} 36.
Qf5 {[%clk 0:01:55.2]} 36... Kf8 {[%clk 0:00:15.1]} 37. Qf6 {[%clk 0:01:52.4]}
1-0

[Event "*** Titled Tuesday Blitz"]
[Site "Chess.com"]
[Date "2021.04.20"]
[Round "2"]
[White "VMikhalevski"]
[Black "4empechement"]
[Result "1-0"]
[WhiteElo "2720"]
[BlackElo "2484"]
[TimeControl "180+1"]
[EndTime "10:15:52 PDT"]
[Termination "VMikhalevski won on time"]

1. Nf3 {[%clk 0:03:00.9]} 1... d5 {[%clk 0:02:59.2]} 2. g3 {[%clk 0:03:00.4]}
2... Nf6 {[%clk 0:02:55.1]} 3. Bg2 {[%clk 0:03:00.6]} 3... g6 {[%clk 0:02:50.8]}
4. O-O {[%clk 0:03:00.1]} 4... Bg7 {[%clk 0:02:50.8]} 5. b3 {[%clk 0:02:58.6]}
5... Ne4 {[%clk 0:02:41.8]} 6. d4 {[%clk 0:02:58]} 6... O-O {[%clk 0:02:40.2]}
7. c4 {[%clk 0:02:57.2]} 7... dxc4 {[%clk 0:02:21.5]} 8. bxc4 {[%clk 0:02:55.9]}
8... c5 {[%clk 0:02:18]} 9. Bb2 {[%clk 0:02:55.5]} 9... Nd6 {[%clk 0:02:05.3]}
10. Nbd2 {[%clk 0:02:51.4]} 10... cxd4 {[%clk 0:02:03.5]} 11. Nxd4 {[%clk
0:02:46.9]} 11... e5 {[%clk 0:01:56]} 12. N4b3 {[%clk 0:02:42]} 12... Nc6 {[%clk
0:01:43.3]} 13. c5 {[%clk 0:02:39.5]} 13... Nb5 {[%clk 0:01:32]} 14. Nc4 {[%clk
0:02:34.6]} 14... Qe7 {[%clk 0:01:15.8]} 15. e3 {[%clk 0:02:31.5]} 15... Bf5
{[%clk 0:01:01.5]} 16. Qe2 {[%clk 0:02:28.9]} 16... Rfd8 {[%clk 0:00:37.9]} 17.
Rfd1 {[%clk 0:02:23.6]} 17... Be6 {[%clk 0:00:29]} 18. Nxe5 {[%clk 0:02:03.4]}
18... Nxe5 {[%clk 0:00:15.6]} 19. Qxb5 {[%clk 0:02:02.5]} 19... Rab8 {[%clk
0:00:07.3]} 20. Rxd8+ {[%clk 0:01:54.1]} 20... Qxd8 {[%clk 0:00:06.9]} 21. Nd4
{[%clk 0:01:52.3]} 21... Bc4 {[%clk 0:00:06.4]} 22. Qa4 {[%clk 0:01:50.8]} 22...
Bd5 {[%clk 0:00:05.2]} 23. e4 {[%clk 0:01:43.8]} 23... Nd3 {[%clk 0:00:02.8]}
24. exd5 {[%clk 0:01:30.8]} 24... Nxb2 {[%clk 0:00:02.5]} 25. Qb4 {[%clk
0:01:30.8]} 25... Nd3 {[%clk 0:00:02.7]} 26. Qc3 {[%clk 0:01:30.9]} 1-0

[Event "*** Titled Tuesday Blitz"]
[Site "Chess.com"]
[Date "2021.04.20"]
[Round "2"]
[White "lacafi"]
[Black "Bad_left_hook"]
[Result "0-1"]
[WhiteElo "2214"]
[BlackElo "2628"]
[TimeControl "180+1"]
[EndTime "10:15:56 PDT"]
[Termination "Bad_left_hook won by resignation"]

1. d4 {[%clk 0:03:00.9]} 1... c5 {[%clk 0:02:58.5]} 2. e3 {[%clk 0:02:59.8]}
2... cxd4 {[%clk 0:02:56.7]} 3. exd4 {[%clk 0:02:57.6]} 3... d5 {[%clk
0:02:56.8]} 4. Nf3 {[%clk 0:02:57.7]} 4... Nf6 {[%clk 0:02:57.2]} 5. c3 {[%clk
0:02:56]} 5... Nc6 {[%clk 0:02:57.7]} 6. Nbd2 {[%clk 0:02:52.8]} 6... Bg4 {[%clk
0:02:57.5]} 7. Qa4 {[%clk 0:02:52.7]} 7... Nd7 {[%clk 0:02:46]} 8. Bb5 {[%clk
0:02:39.8]} 8... Qc7 {[%clk 0:02:23.3]} 9. O-O {[%clk 0:02:26.5]} 9... a6 {[%clk
0:02:13.1]} 10. Bd3 {[%clk 0:01:53]} 10... e6 {[%clk 0:01:56.9]} 11. Re1 {[%clk
0:01:52.7]} 11... Bd6 {[%clk 0:01:44.9]} 12. Ne5 {[%clk 0:01:38.3]} 12... Bxe5
{[%clk 0:01:41.6]} 13. dxe5 {[%clk 0:01:35.2]} 13... Nc5 {[%clk 0:01:41.7]} 14.
Qxg4 {[%clk 0:01:25]} 14... Nxd3 {[%clk 0:01:41.4]} 15. Re3 {[%clk 0:01:19.3]}
15... Ndxe5 {[%clk 0:01:36.7]} 16. Qxg7 {[%clk 0:01:10.1]} 16... O-O-O {[%clk
0:01:36.1]} 17. Nf3 {[%clk 0:01:08.8]} 17... Rhg8 {[%clk 0:01:17.6]} 18. Qxh7
{[%clk 0:00:25.5]} 18... Ng4 {[%clk 0:01:15.6]} 19. Re2 {[%clk 0:00:18.8]} 19...
Rh8 {[%clk 0:01:13.4]} 20. Qc2 {[%clk 0:00:14.3]} 20... Nxh2 {[%clk 0:01:10.3]}
21. Re3 {[%clk 0:00:11.3]} 21... Nxf3+ {[%clk 0:01:06.9]} 22. Rxf3 {[%clk
0:00:11.6]} 22... Nd4 {[%clk 0:01:05.6]} 0-1

[Event "*** Titled Tuesday Blitz"]
[Site "Chess.com"]
[Date "2021.04.20"]
[Round "2"]
[White "NikolaGry"]
[Black "Majesth"]
[Result "1-0"]
[WhiteElo "2709"]
[BlackElo "2480"]
[TimeControl "180+1"]
[EndTime "10:15:59 PDT"]
[Termination "NikolaGry won by resignation"]

1. b3 {[%clk 0:02:59.7]} 1... e5 {[%clk 0:02:58.9]} 2. Bb2 {[%clk 0:02:59.3]}
2... Nc6 {[%clk 0:02:59.4]} 3. c4 {[%clk 0:02:59.3]} 3... g6 {[%clk 0:02:57.3]}
4. e3 {[%clk 0:02:59.3]} 4... Bg7 {[%clk 0:02:57.4]} 5. Nf3 {[%clk 0:02:59.6]}
5... d6 {[%clk 0:02:56.5]} 6. d4 {[%clk 0:02:58.9]} 6... exd4 {[%clk 0:02:51.8]}
7. Nxd4 {[%clk 0:02:58.6]} 7... Nxd4 {[%clk 0:02:50.8]} 8. Bxd4 {[%clk 0:02:58]}
8... Bxd4 {[%clk 0:02:49.6]} 9. Qxd4 {[%clk 0:02:57.9]} 9... Qf6 {[%clk
0:02:49.3]} 10. Qxf6 {[%clk 0:02:57.6]} 10... Nxf6 {[%clk 0:02:50.2]} 11. Nc3
{[%clk 0:02:57.9]} 11... Bd7 {[%clk 0:02:47.6]} 12. Be2 {[%clk 0:02:56]} 12...
Bc6 {[%clk 0:02:47.4]} 13. Bf3 {[%clk 0:02:55.1]} 13... Bxf3 {[%clk 0:02:46.1]}
14. gxf3 {[%clk 0:02:55.2]} 14... a6 {[%clk 0:02:40.6]} 15. Ke2 {[%clk
0:02:49.1]} 15... Ke7 {[%clk 0:02:39.9]} 16. Rhd1 {[%clk 0:02:47.1]} 16... Rhe8
{[%clk 0:02:39.4]} 17. Rac1 {[%clk 0:02:45.3]} 17... Rad8 {[%clk 0:02:37.6]} 18.
Nd5+ {[%clk 0:02:41.9]} 18... Nxd5 {[%clk 0:02:36.4]} 19. cxd5 {[%clk
0:02:42.2]} 19... Rd7 {[%clk 0:02:34.7]} 20. Rd4 {[%clk 0:02:41]} 20... Kd8
{[%clk 0:02:33.2]} 21. f4 {[%clk 0:02:39.4]} 21... b6 {[%clk 0:02:21.7]} 22. Ra4
{[%clk 0:02:32.1]} 22... a5 {[%clk 0:02:20.8]} 23. Rac4 {[%clk 0:02:29.2]} 23...
Kc8 {[%clk 0:02:19.1]} 24. Kf3 {[%clk 0:02:28.5]} 24... Kb7 {[%clk 0:02:18.6]}
25. h4 {[%clk 0:02:27.4]} 25... Rde7 {[%clk 0:02:14]} 26. Rg1 {[%clk 0:02:21.4]}
26... Rd7 {[%clk 0:02:13.4]} 27. h5 {[%clk 0:02:19.3]} 27... Rde7 {[%clk
0:02:12.2]} 28. hxg6 {[%clk 0:02:17.8]} 28... fxg6 {[%clk 0:02:08.8]} 29. Rh1
{[%clk 0:02:13.6]} 29... Rf7 {[%clk 0:02:07.2]} 30. Rd4 {[%clk 0:02:07.9]} 30...
Ree7 {[%clk 0:02:05.9]} 31. Re4 {[%clk 0:02:04.3]} 31... Ka6 {[%clk 0:01:59.3]}
32. Rxe7 {[%clk 0:02:01.7]} 32... Rxe7 {[%clk 0:02:00.2]} 33. a4 {[%clk
0:01:53.9]} 33... Rf7 {[%clk 0:01:55.6]} 34. e4 {[%clk 0:01:51.8]} 34... Re7
{[%clk 0:01:44.1]} 35. Re1 {[%clk 0:01:47.4]} 35... b5 {[%clk 0:01:41.7]} 36. e5
{[%clk 0:01:38]} 36... dxe5 {[%clk 0:01:32.7]} 37. fxe5 {[%clk 0:01:36.5]} 37...
bxa4 {[%clk 0:01:30.5]} 38. bxa4 {[%clk 0:01:36]} 38... Kb6 {[%clk 0:01:24.4]}
39. Ke4 {[%clk 0:01:35.7]} 39... Kc5 {[%clk 0:01:21.7]} 40. Rc1+ {[%clk
0:01:26.6]} 40... Kb4 {[%clk 0:01:21.3]} 41. e6 {[%clk 0:01:25.4]} 41... Kxa4
{[%clk 0:01:17.6]} 42. Ke5 {[%clk 0:01:25]} 42... Kb3 {[%clk 0:01:06.3]} 43. Kf6
{[%clk 0:01:22.3]} 43... Re8 {[%clk 0:01:06.5]} 44. Rxc7 {[%clk 0:01:21.3]} 1-0